fUSD/lending_fUSD_20260615
["ID","MTS","AMOUNT","RATE_DAILY","PERIOD"]
[425108002,1781512240000,-306.0,0.00018012,5]
[425108001,1781512240000,-501.0,0.00018,2]
[425108000,1781512240000,-6100.0,0.00018,2]
[425107996,1781512240000,-99971.4872558,0.00017962,2]
[425107993,1781512240000,-1613.0535,0.00017699,2]
[425108006,1781512240000,-150.0,0.00018084,2]
[425107994,1781512240000,-300.0,0.00017961,2]
[425107995,1781512240000,-300.0,0.00017961,2]
[425107999,1781512240000,-350.0,0.00018,2]
[425107992,1781512240000,-1230.5552,0.00017641,2]
[425107991,1781512240000,-339.0,0.00017589,5]
[425107990,1781512240000,-1230.5552,0.00017513,2]
[425107989,1781512240000,-695.84,0.00017466,2]
[425107988,1781512240000,-1125.99999999,0.00017456,2]
[425107987,1781512240000,-250.0,0.0001742,2]
[425107986,1781512240000,-1230.5552,0.00017384,2]
[425107997,1781512240000,-575.4690079,0.00017995,2]
[425108046,1781512241000,-229.0,0.0002,2]
[425108045,1781512241000,-268.0,0.0002,2]
[425108044,1781512241000,-155.0,0.0002,2]
[425108043,1781512241000,-3254.0,0.0002,2]
[425108042,1781512241000,-2263.0,0.0002,2]
[425108040,1781512241000,-5500.0,0.0002,2]
[425108041,1781512241000,-100000.0,0.0002,2]
[425108036,1781512241000,-400.0,0.0002,2]
[425108038,1781512241000,-2602.0,0.0002,2]
[425108047,1781512241000,-196.0,0.0002,2]
[425108039,1781512241000,-156.0,0.0002,2]
[425108048,1781512241000,-164.0,0.0002,2]
[425108063,1781512241000,-2005.9555727,0.00020987,2]
[425108052,1781512241000,-170602.54095221,0.0002,2]
[425108051,1781512241000,-208.0,0.0002,2]
[425108050,1781512241000,-156.0,0.0002,2]
[425108054,1781512241000,-335.0,0.0002,2]
[425108053,1781512241000,-33288.84904779,0.0002,2]
[425108057,1781512241000,-373.42,0.00020285,2]
[425108059,1781512241000,-1934.38338736,0.00020439,2]
[425108058,1781512241000,-561.8,0.00020381,2]
[425108060,1781512241000,-501.0,0.00020696,4]
[425108061,1781512241000,-160.26,0.00020953,2]
[425108035,1781512241000,-22833.0,0.0002,2]
[425108049,1781512241000,-361.0,0.0002,2]
[425108037,1781512241000,-5264.0,0.0002,2]
[425108023,1781512241000,-695.84,0.00019213,2]
[425108033,1781512241000,-2000.0,0.0002,7]
[425108009,1781512241000,-150.425,0.00018084,2]
[425108010,1781512241000,-1275.0,0.00018084,2]
[425108011,1781512241000,-383.0,0.00018084,2]
[425108012,1781512241000,-631.398,0.00018084,2]
[425108014,1781512241000,-1359.0,0.00018084,2]
[425108015,1781512241000,-1672.7364795,0.00018247,2]
[425108016,1781512241000,-561.8,0.0001841,2]
[425108020,1781512241000,-551.0,0.0001889,5]
[425108017,1781512241000,-373.42,0.00018441,2]
[425108013,1781512241000,-1228.169,0.00018084,2]
[425108018,1781512241000,-4315.98,0.00018533,2]
[425108034,1781512241000,-345.098848,0.0002,2]
[425108019,1781512241000,-1734.62772924,0.00018795,2]
[425108022,1781512241000,-8432.0,0.00019,2]
[425108062,1781512241000,-695.84,0.00020959,2]
[425108024,1781512241000,-502.0,0.0001926,2]
[425108027,1781512241000,-2675.81,0.00019339,2]
[425108029,1781512241000,-390.52,0.00019483,2]
[425108025,1781512241000,-1005.63,0.000193,2]
[425108026,1781512241000,-9999.99,0.00019339,2]
[425108028,1781512241000,-1798.80895522,0.00019343,2]
[425108031,1781512241000,-1865.36488656,0.00019891,2]
[425108030,1781512241000,-501.0,0.00019797,3]
[425108032,1781512241000,-300.0,0.00019999,2]
[425108021,1781512241000,-501.0,0.00018899,2]
[425108064,1781512241000,-345.098848,0.00021,2]
[425108056,1781512241000,-169.0,0.0002,2]
[425108065,1781512241000,-156.0,0.00021,2]
[425108092,1781512241000,-3560.27,0.00021273,2]
[425108093,1781512241000,-380.61,0.00021273,2]
[425108098,1781512241000,-174.61919141,0.00021535,2]
[425108099,1781512241000,-151.0,0.00021535,2]
[425108100,1781512241000,-151.0,0.00021535,2]
[425108103,1781512241000,-161.24317473,0.00021535,2]
[425108102,1781512241000,-151.0,0.00021535,2]
[425108101,1781512241000,-578.20924308,0.00021535,2]
[425108104,1781512241000,-151.0,0.00021535,2]
[425108107,1781512241000,-151.0,0.00021535,2]
[425108106,1781512241000,-151.0,0.00021535,2]
[425108109,1781512241000,-721.12765534,0.00021535,2]
[425108105,1781512241000,-151.0,0.00021535,2]
[425108108,1781512241000,-203.56087745,0.00021535,2]
[425108066,1781512241000,-2604.53455343,0.00021,2]
[425108111,1781512241000,-2080.17592889,0.00021535,2]
[425108112,1781512241000,-151.0,0.00021535,2]
[425108114,1781512241000,-151.0,0.00021535,2]
[425108115,1781512241000,-500.0,0.00021535,2]
[425108119,1781512241000,-151.0,0.00021535,2]
[425108116,1781512241000,-152.0,0.00021535,2]
[425108113,1781512241000,-151.0,0.00021535,2]
[425108118,1781512241000,-500.0,0.00021535,2]
[425108117,1781512241000,-151.0,0.00021535,2]
[425108120,1781512241000,-500.0,0.00021535,2]
[425108096,1781512241000,-233.81409877,0.00021535,2]
[425108097,1781512241000,-151.0,0.00021535,2]
[425108110,1781512241000,-151.0,0.00021535,2]
[425108094,1781512241000,-151.0,0.00021535,2]
[425108090,1781512241000,-518.60745778,0.000211,2]
[425108068,1781512241000,-527.41269015,0.00021,2]
[425108067,1781512241000,-1728.46544657,0.00021,2]
[425108069,1781512241000,-332.11298935,0.00021,2]
[425108071,1781512241000,-3254.0,0.00021,2]
[425108073,1781512241000,-268.0,0.00021,2]
[425108072,1781512241000,-155.0,0.00021,2]
[425108074,1781512241000,-229.0,0.00021,2]
[425108075,1781512241000,-196.0,0.00021,2]
[425108076,1781512241000,-164.0,0.00021,2]
[425108080,1781512241000,-150.0,0.00021084,2]
[425108078,1781512241000,-208.0,0.00021,2]
[425108070,1781512241000,-1403.4743205,0.00021,2]
[425108081,1781512241000,-150.0,0.00021084,2]
[425108091,1781512241000,-525.66,0.00021273,2]
[425108079,1781512241000,-335.0,0.00021,2]
[425108089,1781512241000,-487.02254222,0.000211,2]
[425108095,1781512241000,-151.0,0.00021535,2]
[425108088,1781512241000,-1359.0,0.00021084,2]
[425108087,1781512241000,-1228.0,0.00021084,2]
[425108085,1781512241000,-383.0,0.00021084,2]
[425108077,1781512241000,-361.0,0.00021,2]
[425108083,1781512241000,-150.0,0.00021084,2]
[425108084,1781512241000,-150.0,0.00021084,2]
[425108082,1781512241000,-150.0,0.00021084,2]
[425108086,1781512241000,-631.0,0.00021084,2]
[425108139,1781512242000,-500.0,0.00021535,2]
[425108142,1781512242000,-151.0,0.00021535,2]
[425108144,1781512242000,-500.0,0.00021535,2]
[425108140,1781512242000,-151.0,0.00021535,2]
[425108145,1781512242000,-151.0,0.00021535,2]
[425108143,1781512242000,-500.0,0.00021535,2]
[425108147,1781512242000,-151.0,0.00021535,2]
[425108149,1781512242000,-500.0,0.00021535,2]
[425108148,1781512242000,-500.0,0.00021535,2]
[425108150,1781512242000,-151.0,0.00021535,2]
[425108152,1781512242000,-151.0,0.00021535,2]
[425108151,1781512242000,-525.51537369,0.00021535,2]
[425108154,1781512242000,-151.0,0.00021535,2]
[425108141,1781512242000,-500.0,0.00021535,2]
[425108146,1781512242000,-151.0,0.00021535,2]
[425108138,1781512242000,-151.0,0.00021535,2]
[425108124,1781512242000,-500.0,0.00021535,2]
[425108137,1781512242000,-152.0,0.00021535,2]
[425108155,1781512242000,-151.0,0.00021535,2]
[425108121,1781512242000,-152.0,0.00021535,2]
[425108123,1781512242000,-151.0,0.00021535,2]
[425108122,1781512242000,-151.0,0.00021535,2]
[425108126,1781512242000,-152.0,0.00021535,2]
[425108125,1781512242000,-500.0,0.00021535,2]
[425108127,1781512242000,-151.0,0.00021535,2]
[425108131,1781512242000,-152.0,0.00021535,2]
[425108128,1781512242000,-151.0,0.00021535,2]
[425108129,1781512242000,-500.0,0.00021535,2]
[425108132,1781512242000,-151.0,0.00021535,2]
[425108133,1781512242000,-151.0,0.00021535,2]
[425108130,1781512242000,-500.0,0.00021535,2]
[425108135,1781512242000,-362.45642455,0.00021535,2]
[425108134,1781512242000,-500.0,0.00021535,2]
[425108136,1781512242000,-137.54357545,0.00021535,2]
[425108157,1781512242000,-151.0,0.00021535,2]
[425108160,1781512242000,-500.0,0.00021535,2]
[425108153,1781512242000,-500.0,0.00021535,2]
[425108175,1781512242000,-2428.0,0.000219,7]
[425108180,1781512242000,-500.0,0.00021918,2]
[425108179,1781512242000,-500.0,0.00021918,2]
[425108181,1781512242000,-500.0,0.00021918,2]
[425108182,1781512242000,-258.19096756,0.00021918,2]
[425108184,1781512242000,-385.59007465,0.00021918,2]
[425108174,1781512242000,-151.0,0.00021865,2]
[425108183,1781512242000,-241.80903244,0.00021918,2]
[425108185,1781512242000,-114.40992535,0.00021918,2]
[425108189,1781512242000,-151.0,0.00021975,2]
[425108187,1781512242000,-151.0,0.0002192,2]
[425108190,1781512242000,-345.098848,0.00022,2]
[425108188,1781512242000,-161.24317473,0.00021975,2]
[425108156,1781512242000,-500.0,0.00021535,2]
[425108186,1781512242000,-161.24317473,0.0002192,2]
[425108178,1781512242000,-500.0,0.00021918,8]
[425108177,1781512242000,-150.0,0.00021918,2]
[425108172,1781512242000,-151.0,0.0002181,2]
[425108159,1781512242000,-500.0,0.00021535,2]
[425108158,1781512242000,-151.0,0.00021535,2]
[425108191,1781512242000,-136.32624492,0.00022,2]
[425108161,1781512242000,-161.24317473,0.0002159,2]
[425108162,1781512242000,-151.0,0.0002159,2]
[425108164,1781512242000,-161.24317473,0.00021645,2]
[425108176,1781512242000,-5000.0,0.00021918,2]
[425108169,1781512242000,-161.24317473,0.00021755,2]
[425108163,1781512242000,-501.0,0.00021594,5]
[425108166,1781512242000,-161.24317473,0.000217,2]
[425108167,1781512242000,-151.0,0.000217,2]
[425108168,1781512242000,-170.42,0.0002175,7]
[425108171,1781512242000,-161.24317473,0.0002181,2]
[425108170,1781512242000,-151.0,0.00021755,2]
[425108173,1781512242000,-161.24317473,0.00021865,2]
[425108165,1781512242000,-151.0,0.00021645,2]
[425108198,1781512243000,-696.65,0.00022,14]
[425108196,1781512243000,-313.67375508,0.00022,2]
[425108195,1781512243000,-275.0,0.000219,7]
[425108197,1781512243000,-5921.0,0.00022,2]
[425108204,1781512243000,-196.0,0.00022,2]
[425108201,1781512243000,-158.0,0.00022,2]
[425108202,1781512243000,-268.0,0.00022,2]
[425108200,1781512243000,-3254.0,0.00022,2]
[425108203,1781512243000,-229.0,0.00022,2]
[425108199,1781512243000,-2263.0,0.00022,2]
[425108233,1781512244000,-157.78306428,0.00022631,2]
[425108232,1781512244000,-2236.95670847,0.00022631,2]
[425108236,1781512244000,-317.964483,0.00022888,7]
[425108234,1781512244000,-3560.27,0.00022691,2]
[425108235,1781512244000,-200.0,0.000228,2]
[425108237,1781512244000,-2000.0,0.000229,2]
[425108239,1781512244000,-156.0,0.00023,2]
[425108238,1781512244000,-345.098848,0.00023,2]
[425108241,1781512244000,-2263.0,0.00023,2]
[425108231,1781512244000,-187.78006524,0.00022631,2]
[425108242,1781512244000,-3254.0,0.00023,2]
[425108243,1781512244000,-268.0,0.00023,2]
[425108244,1781512244000,-229.0,0.00023,2]
[425108246,1781512244000,-164.0,0.00023,2]
[425108245,1781512244000,-196.0,0.00023,2]
[425108247,1781512244000,-361.0,0.00023,2]
[425108250,1781512244000,-150.0,0.00023014,2]
[425108249,1781512244000,-335.0,0.00023,2]
[425108248,1781512244000,-208.0,0.00023,2]
[425108252,1781512244000,-194.72792766,0.00023179,2]
[425108251,1781512244000,-233.81409877,0.00023179,2]
[425108253,1781512244000,-2319.72410669,0.00023179,2]
[425108240,1781512244000,-6588.0,0.00023,2]
[425108229,1781512244000,-152.0,0.00022512,2]
[425108207,1781512244000,-208.0,0.00022,2]
[425108227,1781512244000,-501.0,0.00022493,6]
[425108206,1781512244000,-361.0,0.00022,2]
[425108205,1781512244000,-164.0,0.00022,2]
[425108208,1781512244000,-335.0,0.00022,2]
[425108254,1781512244000,-25903.71105636,0.00023272,2]
[425108210,1781512244000,-161.24317473,0.0002203,2]
[425108209,1781512244000,-1122.67,0.00022,2]
[425108212,1781512244000,-233.81409877,0.00022083,2]
[425108211,1781512244000,-151.0,0.0002203,2]
[425108215,1781512244000,-151.0,0.00022083,2]
[425108214,1781512244000,-2157.14243826,0.00022083,2]
[425108216,1781512244000,-161.24317476,0.00022085,2]
[425108213,1781512244000,-181.08010149,0.00022083,2]
[425108218,1781512244000,-373.42,0.00022129,2]
[425108217,1781512244000,-151.0,0.00022085,2]
[425108220,1781512244000,-690.60929981,0.00022407,2]
[425108219,1781512244000,-561.8,0.00022353,2]
[425108225,1781512244000,-465.93314029,0.00022407,2]
[425108222,1781512244000,-209.71320837,0.00022407,2]
[425108226,1781512244000,-465.93314029,0.00022407,2]
[425108221,1781512244000,-209.71320839,0.00022407,2]
[425108223,1781512244000,-209.71320837,0.00022407,2]
[425108224,1781512244000,-465.93314029,0.00022407,2]
[425108228,1781512244000,-2000.0,0.000225,7]
[425108230,1781512244000,-233.81409877,0.00022631,2]
[425108255,1781512244000,-2313.0,0.0002334,3]
[425108273,1781512244000,-3254.0,0.00024,2]
[425108256,1781512244000,-501.0,0.00023391,7]
[425108285,1781512244000,-159.00864,0.0002409,2]
[425108283,1781512244000,-1228.0,0.00024084,2]
[425108290,1781512244000,-580.28,0.0002414,7]
[425108258,1781512244000,-1126.07,0.00023437,7]
[425108288,1781512244000,-631.19,0.0002414,7]
[425108291,1781512244000,-669.79,0.0002414,7]
[425108292,1781512244000,-605.79,0.0002414,7]
[425108293,1781512244000,-150.0,0.00024164,2]
[425108295,1781512244000,-250.0,0.00024164,5]
[425108294,1781512244000,-350.0,0.00024164,5]
[425108301,1781512244000,-233.81409877,0.00024275,2]
[425108298,1781512244000,-599.60298507,0.00024274,2]
[425108297,1781512244000,-2319.0,0.0002426,3]
[425108296,1781512244000,-182.40916939,0.000242,7]
[425108299,1781512244000,-151.0,0.00024274,2]
[425108300,1781512244000,-747.80937859,0.00024274,2]
[425108303,1781512244000,-2494.55939288,0.00024275,2]
[425108302,1781512244000,-209.40437684,0.00024275,2]
[425108305,1781512244000,-185.12,0.00024285,2]
[425108304,1781512244000,-224.340249,0.00024278,7]
[425108306,1781512244000,-501.0,0.0002429,7]
[425108308,1781512244000,-195.042,0.000243,10]
[425108307,1781512244000,-200.0,0.000243,10]
[425108286,1781512244000,-159.00864,0.0002409,2]
[425108287,1781512244000,-159.00863,0.0002409,2]
[425108289,1781512244000,-1092.28,0.0002414,7]
[425108281,1781512244000,-383.0,0.00024084,2]
[425108257,1781512244000,-650.71,0.00023437,7]
[425108259,1781512244000,-598.23,0.00023437,7]
[425108260,1781512244000,-690.51,0.00023437,7]
[425108262,1781512244000,-543.56,0.00023437,7]
[425108261,1781512244000,-624.52,0.00023437,7]
[425108284,1781512244000,-1359.0,0.00024084,2]
[425108263,1781512244000,-320.535036,0.00023527,7]
[425108264,1781512244000,-233.81409877,0.00023727,2]
[425108268,1781512244000,-345.098848,0.00024,2]
[425108265,1781512244000,-201.93286098,0.00023727,2]
[425108267,1781512244000,-11405.21463002,0.0002385,2]
[425108269,1781512244000,-500.0,0.00024,2]
[425108271,1781512244000,-3361.0,0.00024,2]
[425108266,1781512244000,-2405.55389863,0.00023727,2]
[425108282,1781512244000,-631.0,0.00024084,2]
[425108278,1781512244000,-361.0,0.00024,2]
[425108280,1781512244000,-335.0,0.00024,2]
[425108277,1781512244000,-164.0,0.00024,2]
[425108279,1781512244000,-208.0,0.00024,2]
[425108275,1781512244000,-229.0,0.00024,2]
[425108274,1781512244000,-268.0,0.00024,2]
[425108272,1781512244000,-2263.0,0.00024,2]
[425108270,1781512244000,-165.93727348,0.00024,2]
[425108276,1781512244000,-196.0,0.00024,2]
[425108315,1781512245000,-713.26806861,0.00024522,2]
[425108318,1781512245000,-1000.0,0.00024658,2]
[425108319,1781512245000,-1589.22,0.00024658,2]
[425108317,1781512245000,-3010.07,0.00024658,2]
[425108316,1781512245000,-350.259577,0.00024534,7]
[425108309,1781512245000,-561.8,0.00024324,2]
[425108313,1781512245000,-159.00864,0.00024337,2]
[425108312,1781512245000,-159.00863,0.00024337,2]
[425108311,1781512245000,-159.00863,0.00024337,2]
[425108310,1781512245000,-150.00000001,0.00024336,2]
[425108314,1781512245000,-300.0,0.000244,10]
[425108320,1781512245000,-1122.67,0.00024684,7]
[425108324,1781512245000,-217.15233878,0.00024823,2]
[425108322,1781512245000,-200.0,0.000248,2]
[425108323,1781512245000,-233.81409877,0.00024823,2]
[425108325,1781512245000,-2586.85809042,0.00024823,2]
[425108326,1781512245000,-1058.5,0.00024843,7]
[425108328,1781512245000,-649.07,0.00024843,7]
[425108329,1781512245000,-151.0,0.00024897,7]
[425108330,1781512245000,-300.0,0.00024899,10]
[425108327,1781512245000,-562.33,0.00024843,7]
[425108331,1781512245000,-296564.74107853,0.000249,3]
[425108332,1781512245000,-436249.11906442,0.000249,3]
[425108333,1781512245000,-402.49454754,0.000249,3]
[425108321,1781512245000,-454.0,0.00024767,2]
[425108335,1781512246000,-785.48129672,0.00014,3]
[425108336,1781512247000,-1516.51870328,0.00014,3]
[425108337,1781512247000,-1529.43877762,0.000145,5]
[425108338,1781512247000,-818.0,0.000145,5]
[425108341,1781512250000,500.0,0.00014999,17]
[425108340,1781512250000,500.0,0.00014999,16]
[425108339,1781512250000,500.0,0.00014999,15]
[425108344,1781512251000,500.0,0.00014999,20]
[425108343,1781512251000,500.0,0.00014999,19]
[425108342,1781512251000,500.0,0.00014999,18]
[425108348,1781512252000,500.0,0.00014999,21]
[425108347,1781512252000,500.0,0.00014999,21]
[425108346,1781512252000,500.0,0.00014999,21]
[425108345,1781512252000,500.0,0.00014999,21]
[425108349,1781512253000,500.0,0.00014999,21]
[425108350,1781512253000,500.0,0.00014999,21]
[425108351,1781512253000,500.0,0.00014999,21]
[425108356,1781512254000,500.0,0.00014999,21]
[425108355,1781512254000,500.0,0.00014999,21]
[425108354,1781512254000,500.0,0.00014999,21]
[425108352,1781512254000,500.0,0.00014999,21]
[425108359,1781512255000,500.0,0.00014999,21]
[425108358,1781512255000,500.0,0.00014999,21]
[425108357,1781512255000,500.0,0.00014999,21]
[425108362,1781512256000,500.0,0.00014999,21]
[425108361,1781512256000,500.0,0.00014999,21]
[425108360,1781512256000,500.0,0.00014999,21]
[425108363,1781512257000,544.12783431,0.00014999,21]
[425108364,1781512387000,-360.23,0.00013989,2]
[425108366,1781512547000,-150.0,0.00013869,2]
[425108367,1781512695000,151.0,0.00012749,2]
[425108368,1781512699000,151.0,0.00012749,2]
[425108369,1781512702000,151.0,0.00012749,2]
[425108370,1781512730000,-345.26596587,0.00014297,2]
[425108372,1781512881000,-250.0,0.00014,2]
[425108373,1781512897000,200.0,0.000144,20]
[425108374,1781512933000,200.0,0.00013,2]
[425108375,1781513044000,-2514.76,0.00013946,2]
[425108376,1781513204000,-445.09,0.0001386,2]
[425108379,1781513245000,-166.66,0.00013269,2]
[425108380,1781513245000,-166.66,0.00013548,2]
[425108381,1781513245000,-166.66,0.00013828,2]
[425108384,1781513245000,-6.58744982,0.00013924,2]
[425108382,1781513245000,-719.16,0.0001388,2]
[425108383,1781513245000,-150.0,0.00013902,2]
[425108386,1781513322000,151.0,0.00012749,2]
[425108387,1781513325000,151.0,0.00012749,2]
[425108388,1781513343000,-143.41255018,0.00013924,2]
[425108391,1781513343000,-150.0,0.00014139,2]
[425108389,1781513343000,-157.36,0.00013924,2]
[425108392,1781513343000,-150.0,0.00014279,2]
[425108393,1781513343000,-150.0,0.00014371,2]
[425108395,1781513343000,-8922.56744982,0.00014372,2]
[425108394,1781513343000,-160.0,0.00014372,2]
[425108390,1781513343000,-166.66,0.00014107,2]
[425108396,1781513344000,-10000.0,0.00014372,2]
[425108397,1781513345000,-10000.0,0.00014372,2]
[425108400,1781513362000,-8712.89056585,0.00014372,2]
[425108399,1781513362000,-10000.0,0.00014372,2]
[425108401,1781513363000,-10000.0,0.00014372,2]
[425108403,1781513363000,-10000.0,0.00014372,2]
[425108402,1781513363000,-10000.0,0.00014372,2]
[425108404,1781513364000,-10000.0,0.00014372,2]
[425108409,1781513380000,-8712.89056585,0.00014372,2]
[425108410,1781513380000,-10000.0,0.00014372,2]
[425108415,1781513382000,-2119.73937611,0.00014372,2]
[425108414,1781513382000,-314.97247085,0.00014371,2]
[425108413,1781513382000,-271.28815304,0.00014371,2]
[425108412,1781513382000,-500.0,0.00014371,2]
[425108411,1781513382000,-500.0,0.00014371,2]
[425108439,1781513431000,-257.0,0.000145,2]
[425108438,1781513431000,-151.0,0.000145,2]
[425108441,1781513431000,-584.91,0.00014571,2]
[425108442,1781513431000,-584.91,0.00014571,2]
[425108443,1781513431000,-584.91,0.00014571,2]
[425108448,1781513431000,-584.91,0.00014571,2]
[425108445,1781513431000,-584.91,0.00014571,2]
[425108444,1781513431000,-584.91,0.00014571,2]
[425108449,1781513431000,-500.0,0.00014571,2]
[425108437,1781513431000,-30982.40606494,0.00014472,2]
[425108440,1781513431000,-153.57284253,0.00014542,2]
[425108433,1781513431000,-156.0,0.00014419,2]
[425108447,1781513431000,-584.91,0.00014571,2]
[425108436,1781513431000,-46000.57383506,0.00014472,2]
[425108434,1781513431000,-4387.102,0.00014471,2]
[425108432,1781513431000,-166.66,0.00014386,2]
[425108429,1781513431000,-2294.5089151,0.00014372,2]
[425108431,1781513431000,-2133.23,0.00014372,2]
[425108430,1781513431000,-2310.7436,0.00014372,2]
[425108427,1781513431000,-576.98967917,0.00014372,2]
[425108428,1781513431000,-808.4534481,0.00014372,2]
[425108423,1781513431000,-152.0,0.00014371,2]
[425108425,1781513431000,-326.29152548,0.00014371,2]
[425108424,1781513431000,-300.0,0.00014371,2]
[425108426,1781513431000,-152.0,0.00014372,2]
[425108435,1781513431000,-303.294,0.00014471,2]
[425108446,1781513431000,-584.91,0.00014571,2]
[425108471,1781513431000,-1079.78708135,0.00014699,2]
[425108451,1781513431000,-500.0,0.00014571,2]
[425108489,1781513431000,-500.0,0.00014999,5]
[425108450,1781513431000,-500.0,0.00014571,2]
[425108487,1781513431000,-500.0,0.00014999,4]
[425108485,1781513431000,-500.0,0.00014999,3]
[425108482,1781513431000,-500.0,0.00014999,2]
[425108480,1781513431000,-500.0,0.00014998,2]
[425108475,1781513431000,-1204.1456622,0.00014699,2]
[425108473,1781513431000,-1020.27464755,0.00014699,2]
[425108469,1781513431000,-1091.01974434,0.00014699,2]
[425108466,1781513431000,-1019.2036139,0.00014699,2]
[425108465,1781513431000,-166.66,0.00014666,2]
[425108467,1781513431000,-1044.05743377,0.00014699,2]
[425108478,1781513431000,-152.0,0.00014737,2]
[425108463,1781513431000,-500.0,0.00014571,2]
[425108464,1781513431000,-500.0,0.00014571,2]
[425108453,1781513431000,-500.0,0.00014571,2]
[425108454,1781513431000,-500.0,0.00014571,2]
[425108456,1781513431000,-500.0,0.00014571,2]
[425108458,1781513431000,-500.0,0.00014571,2]
[425108455,1781513431000,-500.0,0.00014571,2]
[425108457,1781513431000,-500.0,0.00014571,2]
[425108460,1781513431000,-500.0,0.00014571,2]
[425108461,1781513431000,-500.0,0.00014571,2]
[425108462,1781513431000,-500.0,0.00014571,2]
[425108459,1781513431000,-500.0,0.00014571,2]
[425108452,1781513431000,-500.0,0.00014571,2]
[425108533,1781513432000,-250.0,0.00015808,2]
[425108530,1781513432000,-719.16,0.00015615,2]
[425108538,1781513432000,-300.0,0.00016,2]
[425108535,1781513432000,-3269.15920219,0.000159,2]
[425108534,1781513432000,-250.0,0.00015809,2]
[425108537,1781513432000,-530.57,0.00015965,2]
[425108536,1781513432000,-10000.0,0.0001592,2]
[425108539,1781513432000,-200.0,0.00016095,2]
[425108545,1781513432000,-268.59,0.00016438,2]
[425108540,1781513432000,-3269.15920219,0.000161,2]
[425108542,1781513432000,-163.25,0.00016227,2]
[425108541,1781513432000,-3269.15920219,0.000162,2]
[425108546,1781513432000,-3269.15920219,0.000166,2]
[425108544,1781513432000,-327.7,0.00016438,2]
[425108548,1781513432000,-3169.27552458,0.000167,2]
[425108532,1781513432000,-3269.15920219,0.000158,2]
[425108547,1781513432000,-1500.0,0.00016638,2]
[425108543,1781513432000,-3269.15920219,0.000164,2]
[425108529,1781513432000,-3269.15920219,0.000156,2]
[425108507,1781513432000,-500.0,0.00014999,14]
[425108528,1781513432000,-584.91,0.00015599,2]
[425108550,1781513432000,-3965.0,0.000167,2]
[425108497,1781513432000,-500.0,0.00014999,9]
[425108491,1781513432000,-500.0,0.00014999,6]
[425108493,1781513432000,-500.0,0.00014999,7]
[425108495,1781513432000,-500.0,0.00014999,8]
[425108499,1781513432000,-500.0,0.00014999,10]
[425108501,1781513432000,-500.0,0.00014999,11]
[425108504,1781513432000,-500.0,0.00014999,13]
[425108503,1781513432000,-500.0,0.00014999,12]
[425108517,1781513432000,-162.55,0.00015,2]
[425108511,1781513432000,-500.0,0.00014999,2]
[425108513,1781513432000,-504.10545625,0.00014999,2]
[425108515,1781513432000,-647.74685789,0.00014999,2]
[425108509,1781513432000,-500.0,0.00014999,2]
[425108519,1781513432000,-3445.0,0.00015,2]
[425108521,1781513432000,-319.68685379,0.00015268,2]